[Event "Romanian Superleague 2022"]
[Site "Oradea"]
[Date "2022.09.28"]
[Round "8.19"]
[White "Efimenko, Zahar"]
[Black "Deac, Bogdan-Daniel"]
[Result "1/2-1/2"]
[ECO "C28"]
[WhiteElo "2599"]
[BlackElo "2710"]
[Annotator "TA"]
[PlyCount "75"]
[EventDate "2022.09.21"]
[EventType "team-tourn"]
[EventCountry "ROU"]
[SourceTitle "playchess.com"]
[Source "ChessBase"]
[SourceQuality "1"]
[TimeControl "40/5400+30:1800+30"]

{[%evp 16,75,7,6,14,7,9,0,0,0,0,0,8,0,0,0,77,70,83,95,159,48,61,66,35,0,0,0,8,12,2,0,0,0,0,0,19,0,0,0,185,0,0,0,0,0,0,0,0,0,0,0,0,0,0,0,0,0,0,0,0,0]} 1. e4 {[%emt 0:00:37]} e5 {[%emt 0:00:09]} 2. Bc4 {[%emt 0:00:34]} Nf6 {[%emt 0:00:10]} 3. Nc3 {[%emt 0:00:14]} Nc6 {[%emt 0:00:22]} 4. d3 {[%emt 0:00:41]} Bb4 {[%emt 0:00:48]} 5. Nf3 {[%emt 0:00:31]} d6 {[%emt 0:00:38]} 6. O-O {[%emt 0:01:26]} Bxc3 {[%emt 0:01:18]} 7. bxc3 {[%emt 0:00:06]} h6 {[%emt 0:00:04]} 8. Re1 {[%emt 0:04:37]} O-O {[%emt 0:09:13]} 9. h3 {[%emt 0:01:01]} Be6 {[%emt 0:12:39] [#] C28: Vienna Game: 2...Nf6 3 Bc4 Nc6.} 10. Bxe6 $146 {[%emt 0:09:16]} ({Predecessor:} 10. Bb5 a6 11. Ba4 b5 12. Bb3 Re8 13. Bb2 Qd7 14. Rc1 Re7 15. d4 Bxb3 16. cxb3 exd4 17. cxd4 Nxe4 {0-1 (34) Civi,A (1677)-Isyar,V Hatay 2018}) 10... fxe6 {[%emt 0:00:04]} 11. Rb1 {[%emt 0:00:06]} b6 {[%emt 0:04:15]} 12. d4 {[%emt 0:01:55]} Qe8 {[%emt 0:02:10]} 13. Qe2 {[%emt 0:04:08]} Rd8 {[%emt 0:01:24]} 14. Qb5 {[%emt 0:11:18]} Nh5 {[%emt 0:05:17]} 15. Be3 {[%emt 0:01:50]} ({Of course not} 15. dxe5 {[#]} Rxf3 $1 16. gxf3 Qg6+ 17. Kh1 Nxe5 $15) 15... Rxf3 {[%emt 0:19:27]} 16. gxf3 $16 {[%emt 0:00:30]} a6 {[%emt 0:01:22]} 17. Qxa6 {[%emt 0:07:04]} Ne7 {[%emt 0:02:18]} (17... Qf7 $142) 18. Kh2 {[%emt 0:18:23]} (18. dxe5 $16 dxe5 19. Qc4) 18... Ng6 $1 $14 {[%emt 0:05:14][%cal Be7g6,Bg6h4,Bh4f3][%mdl 32]} 19. Rg1 {[%emt 0:01:25][%cal Oe3h6]} Nh4 $1 {[%emt 0:01:49]} 20. Rg4 {[%emt 0:01:40]} Nxf3+ {[%emt 0:05:32] Pair of Knights!} 21. Kh1 {[%emt 0:00:47]} Kh8 {[%emt 0:05:23]} 22. Qe2 {[%emt 0:05:52]} Qf7 {[%emt 0:02:45]} 23. Rd1 {[%emt 0:00:06]} Rf8 {[%emt 0:01:45]} 24. Rd3 {[%emt 0:05:52]} Qf6 {[%emt 0:04:03]} 25. a3 {[%emt 0:03:58]} d5 {[%emt 0:04:44]} 26. Bc1 {[%emt 0:04:31]} exd4 {[%emt 0:03:27]} 27. exd5 {[%emt 0:01:10]} e5 $2 {[%emt 0:07:06]} (27... Ne5 $11 {and Black has nothing to worry.}) 28. cxd4 $2 {[%emt 0:03:15]} ({Better is} 28. Qe4 $18) 28... Nxd4 $11 {[%emt 0:00:07] The position is equal.} 29. Rgxd4 {[%emt 0:04:29]} exd4 {[%emt 0:00:03]} 30. Qxh5 {[%emt 0:00:29]} Qxf2 {[%emt 0:00:04]} 31. Rd1 {[%emt 0:01:00][%cal Oc1h6] [#] Inhibits Qf1+. Threatens to win with Bxh6!} Qxc2 {[%emt 0:00:22] ( -> ...Rf2)} 32. Bxh6 {[%emt 0:03:27]} Qe4+ {[%emt 0:00:42]} 33. Kg1 {[%emt 0:00:07] And now Bd2+ would win.} gxh6 {[%emt 0:00:08]} (33... Qf3 $2 34. Qxf3 Rxf3 35. Bc1 $18) 34. Qxh6+ {[%emt 0:00:25]} Kg8 {[%emt 0:00:06] White must now prevent ...c5.} 35. Qg5+ {[%emt 0:01:54]} Kh7 {[%emt 0:00:26]} 36. Qh5+ {[%emt 0:00:13]} Kg7 {[%emt 0:00:08]} 37. Qg5+ {[%emt 0:00:14]} Kh7 {[%emt 0:00:12] Strongly threatening ...Rg8.} 38. Qh5+ {[%emt 0:00:16] Weighted Error Value: White=0.18 (very precise) /Black=0.19 (very precise)} 1/2-1/2

[Event "Romanian Superleague 2022"]
[Site "Oradea"]
[Date "2022.09.28"]
[Round "8.20"]
[White "Miroshnichenko, Evgenij"]
[Black "Baklan, Vladimir"]
[Result "1/2-1/2"]
[ECO "A14"]
[WhiteElo "2597"]
[BlackElo "2578"]
[Annotator "TA"]
[PlyCount "31"]
[EventDate "2022.09.21"]
[EventType "team-tourn"]
[EventCountry "ROU"]
[SourceTitle "playchess.com"]
[Source "ChessBase"]
[SourceQuality "1"]
[TimeControl "40/5400+30:1800+30"]

{[%evp 20,31,1,0,5,0,9,0,0,0,0,0,2,2]} 1. Nf3 {[%emt 0:00:08]} Nf6 {[%emt 0:00:09]} 2. c4 {[%emt 0:00:07]} b6 {[%emt 0:00:34]} 3. g3 {[%emt 0:00:55]} Bb7 {[%emt 0:00:09]} 4. Bg2 {[%emt 0:00:19]} e6 {[%emt 0:01:57]} 5. O-O {[%emt 0:00:14]} Be7 {[%emt 0:00:10]} 6. Nc3 {[%emt 0:04:06]} O-O {[%emt 0:01:40]} 7. b3 {[%emt 0:03:42]} d5 {[%emt 0:03:49]} 8. cxd5 {[%emt 0:01:44]} Nxd5 {[%emt 0:01:08]} 9. Nxd5 {[%emt 0:02:22]} Bxd5 {[%emt 0:01:08]} 10. Bb2 {[%emt 0:00:09][%cal Bc1b2,Bb2d4,Bd4f6][%mdl 32]} c5 {[%emt 0:00:50]} 11. d4 {[%emt 0:07:57] The position is equal. is the new trend.} Bf6 {[%emt 0:05:22] A14: English Opening: 1...e6 with b3 by White.} 12. Qc2 $5 {[%emt 0:06:10][%mdl 4] An interesting side line.} cxd4 {[%emt 0:02:37] [#]} 13. Rfd1 $146 {[%emt 0:02:03]} ({Predecessor:} 13. Rad1 Nc6 14. e4 dxe3 15. fxe3 Bxb2 16. Qxb2 Qf6 17. Qe2 Ne7 18. e4 Bc6 19. e5 {1-0 (28) Sawlin,L (2385)-Skalik,P (2367) Chess.com INT 2021}) 13... Nc6 {[%emt 0:02:46]} 14. Nxd4 {[%emt 0:01:37]} Nxd4 {[%emt 0:03:30]} 15. Bxd4 {[%emt 0:00:08]} Bxg2 {[%emt 0:00:13]} 16. Bxf6 {[%emt 0:00:05] An even fight not without its subleties.  Weighted Error Value: White=0.03 (flawless) /Black=0.01 (flawless)} 1/2-1/2

[Event "Romanian Superleague 2022"]
[Site "Oradea"]
[Date "2022.09.28"]
[Round "8.21"]
[White "Nanu, Costica-Ciprian"]
[Black "Iordachescu, Viorel"]
[Result "1/2-1/2"]
[ECO "E11"]
[WhiteElo "2518"]
[BlackElo "2585"]
[Annotator "TA"]
[PlyCount "28"]
[EventDate "2022.09.21"]
[EventType "team-tourn"]
[EventCountry "ROU"]
[SourceTitle "playchess.com"]
[Source "ChessBase"]
[SourceQuality "1"]
[TimeControl "40/5400+30:1800+30"]

{[%evp 9,28,10,32,18,20,18,17,10,15,0,0,0,0,0,4,0,8,0,0,0,43]} 1. d4 {[%emt 0:00:52]} Nf6 {[%emt 0:00:21]} 2. Nf3 {[%emt 0:00:04]} e6 {[%emt 0:00:33]} 3. c4 {[%emt 0:00:05]} Bb4+ {[%emt 0:00:51]} 4. Bd2 {[%emt 0:00:28]} a5 {[%emt 0:00:10]} 5. Nc3 {[%emt 0:01:47]} d5 {[%emt 0:01:06]} 6. cxd5 {[%emt 0:02:30] E11: Bogo-Indian.} exd5 {[%emt 0:00:41] The position is equal.} 7. Bg5 {[%emt 0:01:51]} c6 {[%emt 0:04:51]} 8. e3 {[%emt 0:00:57]} Bf5 {[%emt 0:05:07]} 9. Bd3 {[%emt 0:03:21]} Bxd3 {[%emt 0:00:32]} 10. Qxd3 {[%emt 0:00:06] [#]} O-O $146 {[%emt 0:01:04]} ({Predecessor:} 10... Nbd7 11. O-O O-O 12. Nd2 Re8 13. Rad1 Bd6 14. g3 h6 15. Bxf6 Nxf6 16. e4 dxe4 17. Ndxe4 {0-1 (48) Sanikidze,T (2458)-Golod,V (2606) Plovdiv 2008}) 11. O-O {[%emt 0:00:07]} Be7 {[%emt 0:00:48]} 12. Rad1 {[%emt 0:04:41]} Re8 {[%emt 0:01:23]} 13. Ne5 {[%emt 0:04:16]} Nbd7 {[%emt 1:19:33]} 14. f4 Nb8 {[%emt 0:00:30] A balanced but interesting game.  Weighted Error Value: White=0.05 (flawless) /Black=0.05 (flawless)} 1/2-1/2

[Event "Romanian Superleague 2022"]
[Site "Oradea"]
[Date "2022.09.28"]
[Round "8.22"]
[White "Szabo, Gergely-Andras-Gyula"]
[Black "Rogozenco, Dorian"]
[Result "1-0"]
[ECO "B30"]
[WhiteElo "2512"]
[BlackElo "2438"]
[Annotator "TA"]
[PlyCount "81"]
[EventDate "2022.09.21"]
[EventType "team-tourn"]
[EventCountry "ROU"]
[SourceTitle "playchess.com"]
[Source "ChessBase"]
[SourceQuality "1"]
[TimeControl "40/5400+30:1800+30"]

{[%evp 9,81,19,30,24,17,32,44,26,61,36,24,22,91,85,83,83,81,60,71,72,78,71,83,74,73,84,115,118,127,126,129,128,134,126,174,159,161,140,151,141,152,152,200,189,184,200,193,154,193,160,170,172,177,0,160,167,156,161,166,159,277,279,556,545,814,810,872,830,1046,1045,29980,29981,5502,1384]} 1. e4 {[%emt 0:00:04]} c5 {[%emt 0:00:07]} 2. Nf3 {[%emt 0:00:05]} Nc6 {[%emt 0:00:15]} 3. Bc4 {[%emt 0:00:11]} e6 {[%emt 0:02:12]} 4. O-O {[%emt 0:00:25]} a6 {[%emt 0:01:14]} 5. d4 {[%emt 0:00:30]} cxd4 {[%emt 0:00:24]} 6. Nxd4 {[%emt 0:00:09] B30: Sicilian: 2...Nc6 3 Bb5, lines without ...g6.} Qc7 {[%emt 0:00:16]} 7. Nxc6 {[%emt 0:00:42]} Qxc6 {[%emt 0:10:51]} 8. Bd3 {[%emt 0:04:20] [#] White is slightly better.} Ne7 $146 {[%emt 0:09:42]} ({Predecessor:} 8... h5 9. Qe2 Qc7 10. Nd2 Nf6 11. h3 d6 12. Nf3 e5 13. Ng5 Be7 14. f4 Bd7 {1-0 (128) Hauge,L (2526)-Devereaux,M (2308) Kongsvinger 2022}) 9. b3 {[%emt 0:08:06]} Ng6 {[%emt 0:16:20]} 10. Bb2 {[%emt 0:02:41]} e5 {[%emt 0:00:04]} (10... b6 $11) 11. Nc3 $16 {[%emt 0:04:30]} Be7 {[%emt 0:20:02]} 12. Nd5 {[%emt 0:03:15]} d6 {[%emt 0:00:05]} 13. a4 {[%emt 0:17:41]} Be6 {[%emt 0:02:38]} 14. Bc4 {[%emt 0:01:53]} O-O {[%emt 0:08:01]} 15. Ba3 {[%emt 0:05:28]} Rad8 {[%emt 0:02:20]} 16. Qd3 {[%emt 0:04:40]} (16. Nxe7+ Nxe7 17. Bxe6 fxe6 $11) 16... Bg5 {[%emt 0:03:44]} 17. g3 {[%emt 0:01:22] Against Nf4} Bh3 {[%emt 0:00:02]} 18. Rfd1 {[%emt 0:13:07][%cal Of2f4]} Qc8 {[%emt 0:01:54]} 19. Nb6 {[%emt 0:00:46][%csl LRc8,LRd6]} Qc6 {[%emt 0:11:35] [#]} 20. a5 {[%emt 0:00:56]} Bg4 {[%emt 0:01:41]} 21. f3 {[%emt 0:06:32]} (21. Bxd6 $2 Bxd1 22. Rxd1 Be7 $19) 21... Be6 {[%emt 0:00:05]} (21... Bh3 $16 22. c3 (22. Bxd6 $2 Be7 $19) 22... h5) 22. Kg2 {[%emt 0:02:53]} (22. Bxd6 $2 Be7 23. Bxe6 fxe6 $19) 22... Be7 {[%emt 0:03:14]} 23. Rd2 {[%emt 0:02:59]} Bg5 {[%emt 0:00:39]} 24. Re2 {[%emt 0:00:56]} h5 {[%emt 0:00:07]} 25. Rd1 {[%emt 0:02:09]} Be7 {[%emt 0:01:43]} (25... Rfe8 $16 {is a better defense.} 26. Bd5 (26. Bxd6 Be7 $17) 26... Bxd5) 26. Bd5 $18 {[%emt 0:01:07]} Bxd5 {[%emt 0:00:30]} 27. Qxd5 {[%emt 0:00:26]} Qc7 {[%emt 0:01:56]} 28. Nc4 {[%emt 0:07:33]} Rd7 {[%emt 0:00:47]} 29. Rd3 {[%emt 0:02:27]} (29. Bxd6 Bxd6 30. Nxd6 Rfd8 31. Qxb7 Qxb7 32. Nxb7 Rxd1 $17) 29... Qb8 {[%emt 0:00:29]} 30. Nb6 {[%emt 0:02:12]} (30. Bxd6 $2 Bxd6 31. Rd1 (31. Nxd6 $2 Rfd8 $19) 31... Rfd8 $19) 30... Rdd8 {[%emt 0:00:00]} 31. Nc4 {[%emt 0:01:05]} Rd7 $1 {[%emt 0:00:05]} 32. Red2 {[%emt 0:01:28] White is much more active. The black rooks are badly placed.} ({Don't blunder} 32. Bxd6 $2 Bxd6 33. Rd1 (33. Nxd6 $2 Rfd8 $19) 33... Rfd8 $19) 32... Rfd8 {[%emt 0:00:20]} 33. Nb6 $36 {[%emt 0:00:34][%mdl 2048] White is on the roll.} Rc7 {[%emt 0:00:07] [#]} 34. c4 $1 {[%emt 0:00:14]} Bg5 {[%emt 0:02:24]} (34... Nf8 $16 35. c5 Rc6) 35. Rd1 {[%emt 0:01:17]} ({But not} 35. Bxd6 Bxd2 36. Rxd2 h4 $18) 35... Ne7 $2 {[%emt 0:01:30] [#]} (35... Bf6 {was necessary.}) 36. Qxe5 $3 {[%emt 0:00:07][%mdl 512]} Bf6 {[%emt 0:00:30]} (36... dxe5 37. Rxd8+) 37. Qxh5 {[%emt 0:00:10]} g6 {[%emt 0:00:22]} 38. Qg4 {[%emt 0:00:33]} Nc6 {[%emt 0:00:23]} 39. Bxd6 {[%emt 0:01:14]} Ne5 {[%emt 0:00:48]} 40. Bxe5 {[%emt 0:00:00]} Rxd3 {[%emt 0:00:00]} 41. Bxc7 {[%emt 0:00:26] Weighted Error Value: White=0.11 (very precise) /Black=0.41} (41. Bxf6 $142 Rc6 42. Rxd3 Rxf6 43. Nd7) 1-0

[Event "Romanian Superleague 2022"]
[Site "Oradea"]
[Date "2022.09.28"]
[Round "8.23"]
[White "Anton, Teodor"]
[Black "Nevednichy, Vladislav"]
[Result "0-1"]
[ECO "E62"]
[WhiteElo "2454"]
[BlackElo "2472"]
[Annotator "TA"]
[PlyCount "114"]
[EventDate "2022.09.21"]
[EventType "team-tourn"]
[EventCountry "ROU"]
[SourceTitle "playchess.com"]
[Source "ChessBase"]
[SourceQuality "1"]
[TimeControl "40/5400+30:1800+30"]

{[%evp 16,114,14,9,24,18,28,0,0,0,23,19,22,7,18,25,4,22,17,13,10,0,0,-12,-7,-6,-7,-35,-30,-52,-48,-56,-42,-67,-64,-70,-68,-62,-34,-40,-15,-16,-12,-11,-11,-27,-14,-38,-24,-36,-43,-76,-65,-67,-27,-37,-31,-43,-38,-40,-5,-6,-18,-10,-14,-13,-16,-29,-21,-27,-20,-9,0,-254,-223,-377,-368,-442,-437,-12837,-12837,-12837,-12838,-12838,-12839,-12839,-12839,-12839,-12839,-12841,-12841,-12845,-12844,-12845,-12845,-12845,-12846,-12846,-12847,-12847,-12847]} 1. d4 {[%emt 0:00:04]} Nf6 {[%emt 0:00:04]} 2. c4 {[%emt 0:00:13]} d6 {[%emt 0:00:17]} 3. Nf3 {[%emt 0:00:31]} g6 {[%emt 0:00:11]} 4. g3 {[%emt 0:00:12]} Bg7 {[%emt 0:00:02]} 5. Bg2 {[%emt 0:00:06]} O-O {[%emt 0:00:03]} 6. O-O {[%emt 0:00:07]} c6 {[%emt 0:00:02]} 7. Nc3 {[%emt 0:00:13]} Bf5 $1 {[%emt 0:00:03][%mdl 4] now scores much better than the old 7...Qa5.} 8. Nh4 {[%emt 0:00:19]} Be6 {[%emt 0:00:07]} 9. d5 {[%emt 0:00:15]} Bd7 {[%emt 0:00:04] E62: King's Indian: Fianchetto: 6...c6 and Panno Variation (6...Nc6) without ...a6.} 10. e4 {[%emt 0:02:16]} Na6 {[%emt 0:00:18]} 11. Nf3 {[%emt 0:02:13]} cxd5 {[%emt 0:15:16] The position is equal.} 12. cxd5 {[%emt 0:00:18]} Ng4 {[%emt 0:06:43] [#]} 13. Bf4 $146 {[%emt 0:10:22]} ({Predecessor:} 13. Nd4 Rc8 14. Nce2 Qb6 15. h3 Nf6 16. Rb1 Nc5 17. f3 Na4 18. Be3 Qa5 19. Bd2 {0-1 (52) Jirka,J (2411)-Golod,V (2565) Israel 2013}) 13... Qb6 {[%emt 0:00:56]} 14. Qd2 {[%emt 0:01:17]} Rfc8 {[%emt 0:06:16]} 15. h3 {[%emt 0:03:13]} Ne5 {[%emt 0:00:04]} 16. Nxe5 {[%emt 0:00:22]} Bxe5 {[%emt 0:00:10]} 17. Bxe5 {[%emt 0:00:47]} dxe5 {[%emt 0:00:01]} 18. h4 {[%emt 0:08:22]} Nc7 {[%emt 0:01:41][%cal Ba6c7,Bc7e8,Be8d6][%mdl 32]} 19. h5 {[%emt 0:01:49]} Ne8 {[%emt 0:04:20]} 20. hxg6 {[%emt 0:00:11]} hxg6 {[%emt 0:00:02]} 21. Rab1 {[%emt 0:00:52]} Kg7 {[%emt 0:00:58]} 22. Rfe1 {[%emt 0:09:07]} Nd6 {[%emt 0:01:19]} 23. Bf1 {[%emt 0:00:15]} f6 {[%emt 0:00:51]} 24. Kg2 {[%emt 0:01:26]} Rh8 {[%emt 0:02:24]} 25. Qe3 $1 {[%emt 0:13:45]} Qxe3 {[%emt 0:20:02] Black has more active pieces.} 26. Rxe3 {[%emt 0:00:24]} Rac8 {[%emt 0:00:01]} 27. Bd3 {[%emt 0:10:06]} Rc7 {[%emt 0:03:42]} 28. Ree1 {[%emt 0:03:28]} Rhc8 {[%emt 0:02:14]} 29. f4 {[%emt 0:05:29]} b5 {[%emt 0:06:43]} 30. a3 {[%emt 0:14:31]} a5 {[%emt 0:03:37]} 31. Rec1 {[%emt 0:04:34]} e6 {[%emt 0:18:50]} 32. fxe5 {[%emt 0:02:13]} fxe5 {[%emt 0:00:02]} 33. dxe6 {[%emt 0:03:12]} Bxe6 {[%emt 0:00:07]} 34. Re1 {[%emt 0:00:51]} b4 {[%emt 0:02:24]} 35. axb4 {[%emt 0:00:24]} axb4 {[%emt 0:00:02]} 36. Nd5 {[%emt 0:00:22]} Bxd5 {[%emt 0:00:30]} 37. exd5 {[%emt 0:00:07]} Re8 {[%emt 0:00:56] ...e4 is the strong threat.} 38. Rbc1 {[%emt 0:01:23]} Rxc1 {[%emt 0:00:08]} 39. Rxc1 $11 {[%emt 0:00:02][%mdl 4096] Endgame KRB-KRN} e4 {[%emt 0:00:08]} 40. Be2 {[%emt 0:00:00]} Kf6 {[%emt 0:00:00] [#] Strongly threatening ...Ke5.} 41. Rc6 {[%emt 0:04:23]} Ke5 {[%emt 0:01:55]} 42. Rb6 $1 {[%emt 0:00:52]} Rc8 {[%emt 0:00:21] And now ...Rc2 would win.} 43. Rxb4 {[%emt 0:02:19]} Rc2 {[%emt 0:00:31]} 44. Kf1 {[%emt 0:00:07][%mdl 8192]} (44. Kf2 $1 $11) 44... Nf5 $19 {[%emt 0:01:03]} ({And not} 44... Kxd5 45. g4 $15) 45. Bd1 $2 {[%emt 0:05:36]} (45. Ba6) 45... Nxg3+ {[%emt 0:01:35]} 46. Ke1 {[%emt 0:00:07]} Rg2 {[%emt 0:00:59] [#] ( -> ...e3). Black is clearly winning.} 47. Bg4 {[%emt 0:12:33]} (47. Rb3 $142 Kxd5 48. Rb8) 47... e3 {[%emt 0:02:30][%cal Rg2g1]} (47... Nf5 $2 48. d6 Nxd6 49. Bd7 $19) 48. Kd1 {[%emt 0:00:06]} e2+ {[%emt 0:14:58]} 49. Bxe2 {[%emt 0:06:37]} Nxe2 {[%emt 0:00:07] KRN-KR} ({Not} 49... Rxe2 50. Rg4 $11) 50. d6 {[%emt 0:00:15]} Kxd6 {[%emt 0:00:05]} 51. Re4 {[%emt 0:00:08]} Ng3 {[%emt 0:01:27]} 52. Re8 {[%emt 0:02:11]} Nf5 {[%emt 0:00:19]} 53. b4 {[%emt 0:00:26]} Rb2 {[%emt 0:00:23]} 54. Rb8 {[%emt 0:00:15]} Kc7 {[%emt 0:01:28]} 55. Rb5 {[%emt 0:00:55]} Nd4 {[%emt 0:01:11]} 56. Rc5+ {[%emt 0:01:40]} Kd6 {[%emt 0:00:10]} 57. Rc4 {[%emt 0:00:24]} Ke5 {[%emt 0:18:20] Weighted Error Value: White=0.34/Black=0.05 (flawless)} 0-1

[Event "Romanian Superleague 2022"]
[Site "Oradea"]
[Date "2022.09.28"]
[Round "8.24"]
[White "Stoleriu, George"]
[Black "Antal, Hunor-Zoltan"]
[Result "1-0"]
[ECO "B53"]
[WhiteElo "2392"]
[BlackElo "2235"]
[Annotator "TA"]
[PlyCount "87"]
[EventDate "2022.09.21"]
[EventType "team-tourn"]
[EventCountry "ROU"]
[SourceTitle "playchess.com"]
[Source "ChessBase"]
[SourceQuality "1"]
[TimeControl "40/5400+30:1800+30"]

{[%evp 9,87,7,12,2,18,0,0,0,0,0,0,0,0,0,0,-17,-18,-4,-11,-1,6,11,14,0,0,-25,-12,-31,-20,-28,-17,-12,33,31,52,59,101,110,99,86,90,90,91,83,110,123,153,127,151,136,130,131,133,134,133,159,156,129,243,246,288,281,368,372,514,507,477,489,561,562,522,558,562,562,638,624,658,632,854,729]} 1. e4 {[%emt 0:00:03]} c5 {[%emt 0:00:21]} 2. Nf3 {[%emt 0:00:07]} d6 {[%emt 0:00:07]} 3. d4 {[%emt 0:00:07]} cxd4 {[%emt 0:00:07]} 4. Qxd4 {[%emt 0:00:02]} Nf6 {[%emt 0:00:16]} 5. h3 {[%emt 0:00:34]} Nc6 {[%emt 0:04:44]} 6. Qe3 {[%emt 0:00:41] B53: Sicilian: 2...d6: Lines with Qxd4.} (6. Bb5 {looks sharper.} e6 7. O-O Qc7 8. Rd1) 6... g6 {[%emt 0:01:29]} 7. Be2 {[%emt 0:00:26]} Bg7 {[%emt 0:00:06]} 8. O-O {[%emt 0:00:04] The position is equal.} O-O {[%emt 0:00:06]} 9. Rd1 {[%emt 0:00:02]} Qc7 {[%emt 0:01:40]} 10. Nc3 {[%emt 0:01:04]} a6 {[%emt 0:01:54]} 11. a3 {[%emt 0:04:24]} b5 {[%emt 0:07:21]} 12. Qf4 {[%emt 0:03:05] [#]} Bb7 $146 {[%emt 0:02:05]} ({Predecessor:} 12... Rb8 13. Qh4 b4 14. axb4 Nxb4 15. Bh6 Nxc2 16. Rac1 Rxb2 17. Nd5 Nxd5 18. exd5 Qb7 {1-0 (40) Gutenev,A (2420)-Remizov,Y (2415) Cheliabinsk 2021}) 13. Qh4 {[%emt 0:08:32]} Na5 {[%emt 0:22:22]} 14. Bh6 {[%emt 0:30:51]} Nc4 {[%emt 0:02:37]} 15. Bxc4 {[%emt 0:09:13]} Qxc4 {[%emt 0:00:13]} 16. Bxg7 {[%emt 0:07:20]} Kxg7 {[%emt 0:00:10]} 17. Nd2 {[%emt 0:00:17][%cal Bf3d2,Bd2b3,Bb3a5][%mdl 32]} Qc7 {[%emt 0:03:31]} 18. Rac1 {[%emt 0:01:29]} Rac8 {[%emt 0:00:59]} 19. Qf4 {[%emt 0:05:49]} e5 {[%emt 0:09:18]} 20. Qe3 {[%emt 0:01:54]} Qc5 {[%emt 0:00:44]} 21. Qxc5 {[%emt 0:01:55]} Rxc5 {[%emt 0:13:05]} 22. Nb3 {[%emt 0:06:54][%csl LRc5,LRd6]} Rxc3 {[%emt 0:00:25] White stays focused until the end.} 23. bxc3 {[%emt 0:00:03][%cal Bb2c3,Bc3c4][%mdl 32]} Nxe4 {[%emt 0:00:14]} 24. Na5 {[%emt 0:00:03]} Ba8 {[%emt 0:00:47]} 25. c4 {[%emt 0:00:33]} Nc3 {[%emt 0:00:30] aiming for ...Ne2+.} 26. Rd2 {[%emt 0:00:36] Against Ne2+} f6 {[%emt 0:19:15]} 27. Re1 {[%emt 0:02:37]} Rd8 {[%emt 0:02:09]} 28. Rd3 {[%emt 0:05:15]} Ne4 {[%emt 0:02:07]} 29. cxb5 {[%emt 0:06:48]} axb5 {[%emt 0:00:01] [#]} 30. f3 $1 {[%emt 0:00:04]} Nc5 {[%emt 0:00:11]} 31. Rc3 {[%emt 0:00:01]} Kf7 {[%emt 0:02:43]} 32. Rb1 {[%emt 0:03:05]} Rb8 {[%emt 0:00:02]} 33. Rc4 {[%emt 0:00:06]} Bd5 {[%emt 0:01:00]} (33... bxc4 $16 34. Rxb8 Bd5) 34. Rcb4 $18 {[%emt 0:00:08]} Ra8 {[%emt 0:00:21]} 35. Rxb5 {[%emt 0:00:05]} Be6 {[%emt 0:01:55]} 36. Nb7 {[%emt 0:00:15]} Na4 {[%emt 0:00:01]} 37. Nxd6+ {[%emt 0:00:18] White is clearly winning.} Ke7 {[%emt 0:00:01]} 38. Ne4 {[%emt 0:00:17]} f5 {[%emt 0:00:44]} 39. Rb7+ {[%emt 0:00:30]} Bd7 {[%emt 0:00:47]} 40. Rd1 {[%emt 0:00:00]} Rd8 {[%emt 0:00:00] [#]} 41. Nf6 {[%emt 0:01:29][%cal Rf6d7][%mdl 512]} Kxf6 {[%emt 0:00:49]} (41... Nc5 42. Rb6) 42. Rdxd7 {[%emt 0:00:17]} Rc8 {[%emt 0:00:09]} 43. Rdc7 {[%emt 0:00:18]} Rd8 {[%emt 0:00:12]} 44. Rb4 {[%emt 0:00:39] Weighted Error Value: White=0.05 (flawless) /Black=0.24 (precise)} 1-0

[Event "Romanian Superleague 2022"]
[Site "Oradea"]
[Date "2022.09.28"]
[Round "8.25"]
[White "Sumets, Andrey"]
[Black "Kozak, Adam"]
[Result "1/2-1/2"]
[WhiteElo "2513"]
[BlackElo "2516"]
[Annotator "TA"]
[PlyCount "32"]
[EventDate "2022.09.21"]
[EventType "team-tourn"]
[EventCountry "ROU"]
[SourceTitle "playchess.com"]
[Source "ChessBase"]
[SourceQuality "1"]
[TimeControl "40/5400+30:1800+30"]

{[%evp 10,19,27,0,0,0,0,-5,16,10,18,2]} 1. d4 {[%emt 0:00:04]} d5 {[%emt 0:03:15]} 2. c4 {[%emt 0:00:03]} e6 {[%emt 0:00:07]} 3. Nf3 {[%emt 0:01:18]} Nf6 {[%emt 0:00:11]} 4. Nc3 {[%emt 0:00:17]} dxc4 {[%emt 0:00:11]} 5. e3 {[%emt 0:01:17]} a6 {[%emt 0:00:22]} 6. a4 {[%emt 0:00:07]} b6 {[%emt 0:00:09] The position is equal. D24: Queen's Gambit Accepted: 3 Nf3 Nf6 4 Nc3.} 7. Bxc4 {[%emt 0:00:09]} Bb7 {[%emt 0:00:07]} 8. O-O {[%emt 0:00:32][%cal Oe3e4]} Bb4 {[%emt 0:00:12]} 9. Qe2 {[%emt 0:01:18]} O-O {[%emt 0:01:31]} 10. Rd1 {[%emt 0:00:19] [#] Not much happened in this game.  Weighted Error Value: White=0.09 (flawless) /Black=0.05 (flawless)} {Predecessor:} Qe7 $146 11. Bd3 c5 12. Na2 Nc6 13. Nxb4 Nxb4 14. b3 Nxd3 15. Rxd3 Be4 16. Rd1 Rfc8 {0-1 (71) Carlsen,M (2847)-So,W (2770) chess24.com INT 2021} 1/2-1/2